[Event "Lithuanian Chess League 2021"]
[Site "Various cities"]
[Date "2021.05.08"]
[Round "2.1"]
[White "Laurusas, Tomas"]
[Black "Chocenka, Dmitrijus"]
[Result "1-0"]
[WhiteElo "2505"]
[BlackElo "2327"]
[PlyCount "95"]
[TimeControl "90/40+30:0"]
[WhiteClock "0:03:23"]
[BlackClock "0:06:09"]

1. d4 {[%emt 0:00:02]} Nf6 {[%emt 0:00:06]} 2. c4 {[%emt 0:00:05]} g6 {[%emt 0:
00:05]} 3. Nc3 {[%emt 0:00:05]} Bg7 {[%emt 0:00:04]} 4. e4 {[%emt 0:00:06]} d6
{[%emt 0:00:04]} 5. Nf3 {[%emt 0:00:04]} O-O {[%emt 0:00:07]} 6. Be2 {[%emt 0:
00:02]} e5 {[%emt 0:00:12]} 7. Be3 {[%emt 0:00:04]} Ng4 {[%emt 0:01:11]} 8. Bg5
{[%emt 0:00:07]} f6 {[%emt 0:00:05]} 9. Bc1 {[%emt 0:02:16]} Nc6 {[%emt 0:04:
16]} 10. d5 {[%emt 0:00:13]} Ne7 {[%emt 0:00:12]} 11. h3 {[%emt 0:00:14]} Nh6 {
[%emt 0:00:12]} 12. O-O {[%emt 0:17:33]} Nf7 {[%emt 0:03:01]} 13. b4 {[%emt 0:
04:32]} Bh6 {[%emt 0:08:39]} 14. Bxh6 {[%emt 0:02:10]} Nxh6 {[%emt 0:00:05]}
15. c5 {[%emt 0:00:14]} Nf7 {[%emt 0:01:41]} 16. Rc1 {[%emt 0:05:20]} a6 {
[%emt 0:02:43]} 17. a4 {[%emt 0:08:14]} Bd7 {[%emt 0:03:33]} 18. a5 {[%emt 0:
04:50]} Kg7 {[%emt 0:07:29]} 19. Nd2 {[%emt 0:11:54]} g5 {[%emt 0:02:49]} 20.
Nc4 {[%emt 0:01:11]} Rc8 {[%emt 0:09:57]} 21. Bg4 {[%emt 0:12:09]} f5 {[%emt 0:
04:58]} 22. exf5 {[%emt 0:00:28]} Bxf5 {[%emt 0:00:57]} 23. Re1 {[%emt 0:05:17]
} Nh6 {[%emt 0:06:10]} 24. Ne4 {[%emt 0:02:39]} Nxg4 {[%emt 0:00:38]} 25. hxg4
{[%emt 0:00:05]} Bxe4 {[%emt 0:00:08]} 26. Rxe4 {[%emt 0:00:03]} Rf6 {[%emt 0:
03:20]} 27. Ne3 {[%emt 0:02:49]} Rf4 {[%emt 0:14:58]} 28. Qd3 {[%emt 0:00:57]}
Qf8 {[%emt 0:03:10]} 29. Rec4 {[%emt 0:01:04]} Rxc4 {[%emt 0:02:42]} 30. Rxc4 {
[%emt 0:00:08]} Kh8 {[%emt 0:03:29]} 31. Qc2 {[%emt 0:05:00]} Qg8 {[%emt 0:03:
15]} 32. Qe4 {[%emt 0:02:59]} h6 {[%emt 0:08:11]} 33. g3 {[%emt 0:02:01]} Kg7 {
[%emt 0:00:36]} 34. f4 {[%emt 0:04:01]} gxf4 {[%emt 0:01:09]} 35. gxf4 {[%emt
0:00:45]} Kf6 {[%emt 0:01:31]} 36. fxe5+ {[%emt 0:04:04]} dxe5 {[%emt 0:00:06]}
37. Rc2 {[%emt 0:00:29]} Qg5 {[%emt 0:00:33]} 38. Rf2+ {[%emt 0:02:20]} Kg7 {
[%emt 0:00:02]} 39. d6 {[%emt 0:00:13]} cxd6 {[%emt 0:01:01]} 40. cxd6 {[%emt
0:00:30]} Rc1+ {[%emt 0:00:52]} 41. Kg2 {[%emt 0:01:31]} Nc6 {[%emt 0:01:14]}
42. Qf3 {[%emt 0:00:48]} Qf4 {[%emt 0:00:42]} 43. Qd5 {[%emt 0:00:05]} Rg1+ {
[%emt 0:01:09]} 44. Kxg1 {[%emt 0:00:07]} Qxe3 {[%emt 0:00:03]} 45. Qf7+ {
[%emt 0:00:51]} Kh8 {[%emt 0:00:02]} 46. Qf6+ {[%emt 0:00:17]} Kh7 {[%emt 0:00:
10]} 47. Qf5+ {[%emt 0:00:04]} Kg7 {[%emt 0:00:13]} 48. Kg2 {[%emt 0:00:06]}
1-0

[Event "Lithuanian Chess League 2021"]
[Site "Various cities"]
[Date "2021.05.08"]
[Round "2.2"]
[White "Indriunas, Matas"]
[Black "Pultinevicius, Paulius"]
[Result "0-1"]
[WhiteElo "2227"]
[BlackElo "2501"]
[PlyCount "90"]
[TimeControl "90/40+30:0"]
[WhiteClock "0:03:07"]
[BlackClock "0:28:27"]

1. e4 {[%emt 0:00:18]} c6 {[%emt 0:00:07]} 2. d4 {[%emt 0:00:28]} d5 {[%emt 0:
00:06]} 3. Nd2 {[%emt 0:00:37]} dxe4 {[%emt 0:00:05]} 4. Nxe4 {[%emt 0:00:03]}
Nf6 {[%emt 0:00:06]} 5. Nxf6+ {[%emt 0:00:54]} exf6 {[%emt 0:00:06]} 6. c3 {
[%emt 0:02:19]} Bd6 {[%emt 0:00:35]} 7. Bd3 {[%emt 0:00:07]} Na6 {[%emt 0:00:
40]} 8. Qc2 {[%emt 0:06:19]} h5 {[%emt 0:04:28]} 9. Bxa6 {[%emt 0:11:59]} bxa6
{[%emt 0:00:08]} 10. Qe4+ {[%emt 0:00:54]} Kf8 {[%emt 0:10:39]} 11. Ne2 {[%emt
0:14:08]} Qc7 {[%emt 0:08:00]} 12. Bf4 {[%emt 0:03:24]} Bg4 {[%emt 0:00:40]}
13. Bxd6+ {[%emt 0:02:17]} Qxd6 {[%emt 0:00:06]} 14. f3 {[%emt 0:00:31]} Re8 {
[%emt 0:03:28]} 15. Qd3 {[%emt 0:00:17]} Bc8 {[%emt 0:02:40]} 16. c4 {[%emt 0:
07:15]} h4 {[%emt 0:07:39]} 17. O-O-O {[%emt 0:04:53]} g6 {[%emt 0:01:24]} 18.
g4 {[%emt 0:04:57]} Kg7 {[%emt 0:03:01]} 19. h3 {[%emt 0:06:27]} Re7 {[%emt 0:
00:42]} 20. Rde1 {[%emt 0:00:48]} Rhe8 {[%emt 0:01:19]} 21. Kd2 {[%emt 0:00:25]
} f5 {[%emt 0:04:50]} 22. Qa3 {[%emt 0:10:50]} Qf6 {[%emt 0:01:07]} 23. Qc3 {
[%emt 0:04:08]} Qg5+ {[%emt 0:04:11]} 24. Kd1 {[%emt 0:01:51]} Re3 {[%emt 0:00:
10]} 25. Qd2 {[%emt 0:01:19]} fxg4 {[%emt 0:03:21]} 26. fxg4 {[%emt 0:00:26]}
f5 {[%emt 0:02:11]} 27. Nc3 {[%emt 0:05:32]} fxg4 {[%emt 0:00:55]} 28. Rxe3 {
[%emt 0:01:00]} Rxe3 {[%emt 0:00:19]} 29. d5 {[%emt 0:00:57]} Bf5 {[%emt 0:06:
45]} 30. Kc1 {[%emt 0:00:50]} gxh3 {[%emt 0:05:48]} 31. dxc6 {[%emt 0:02:09]}
Kh7 {[%emt 0:00:50]} 32. Nd5 {[%emt 0:01:49]} Qg2 {[%emt 0:00:59]} 33. Nxe3 {
[%emt 0:03:08]} Qxh1+ {[%emt 0:00:08]} 34. Nd1 {[%emt 0:00:43]} Qe4 {[%emt 0:
00:43]} 35. Nc3 {[%emt 0:00:39]} Qh1+ {[%emt 0:04:26]} 36. Nd1 {[%emt 0:00:05]}
Qxc6 {[%emt 0:00:13]} 37. Qd4 {[%emt 0:01:20]} Qe4 {[%emt 0:00:05]} 38. Qxa7+ {
[%emt 0:00:07]} Kh6 {[%emt 0:00:04]} 39. Kd2 {[%emt 0:00:39]} h2 {[%emt 0:00:
30]} 40. Nf2 {[%emt 0:00:10]} h1=Q {[%emt 0:00:20]} 41. Nxh1 {[%emt 0:00:17]}
Qxh1 {[%emt 0:00:06]} 42. Qe3+ {[%emt 0:00:07]} g5 {[%emt 0:00:04]} 43. Qb6+ {
[%emt 0:02:00]} Kh5 {[%emt 0:00:07]} 44. c5 {[%emt 0:00:08]} Qg2+ {[%emt 0:00:
14]} 45. Ke3 {[%emt 0:00:14]} h3 {[%emt 0:00:12]} 0-1

[Event "Lithuanian Chess League 2021"]
[Site "Various cities"]
[Date "2021.05.08"]
[Round "2.3"]
[White "Vedrickas, Tautvydas"]
[Black "Limontas, Martynas"]
[Result "0-1"]
[WhiteElo "2395"]
[BlackElo "2311"]
[PlyCount "70"]
[TimeControl "90/40+30:0"]
[WhiteClock "0:00:55"]
[BlackClock "0:04:38"]

1. d4 {[%emt 0:00:02]} Nf6 {[%emt 0:00:10]} 2. Nf3 {[%emt 0:00:46]} e6 {[%emt
0:00:56]} 3. c4 {[%emt 0:00:07]} c5 {[%emt 0:00:35]} 4. d5 {[%emt 0:03:02]} b5
{[%emt 0:00:28]} 5. Bg5 {[%emt 0:00:21]} h6 {[%emt 0:04:56]} 6. Bh4 {[%emt 0:
12:46]} exd5 {[%emt 0:08:21]} 7. cxd5 {[%emt 0:00:30]} d6 {[%emt 0:00:46]} 8.
e4 {[%emt 0:03:22]} a6 {[%emt 0:07:51]} 9. Nbd2 {[%emt 0:00:38]} Be7 {[%emt 0:
03:51]} 10. a4 {[%emt 0:00:27]} Nxd5 {[%emt 0:06:06]} 11. exd5 {[%emt 0:02:46]}
Bxh4 {[%emt 0:00:07]} 12. axb5 {[%emt 0:00:16]} O-O {[%emt 0:01:51]} 13. Be2 {
[%emt 0:02:31]} Bf6 {[%emt 0:02:41]} 14. Nc4 {[%emt 0:12:54]} Bb7 {[%emt 0:07:
13]} 15. b6 {[%emt 0:13:33]} Nd7 {[%emt 0:06:24]} 16. Nxd6 {[%emt 0:05:10]}
Qxb6 {[%emt 0:00:29]} 17. Nxb7 {[%emt 0:01:33]} Qxb7 {[%emt 0:04:36]} 18. O-O {
[%emt 0:01:15]} Bxb2 {[%emt 0:11:47]} 19. Rb1 {[%emt 0:01:19]} Rfb8 {[%emt 0:
00:08]} 20. Bc4 {[%emt 0:19:20]} Qc8 {[%emt 0:09:12]} 21. d6 {[%emt 0:01:41]}
Bf6 {[%emt 0:00:28]} 22. Qd5 {[%emt 0:02:35]} Qf8 {[%emt 0:00:13]} 23. Qc6 {
[%emt 0:06:45]} Qc8 {[%emt 0:01:57]} 24. Qd5 {[%emt 0:00:17]} Qf8 {[%emt 0:01:
25]} 25. Qc6 {[%emt 0:02:10]} Qc8 {[%emt 0:01:08]} 26. Qc7 {[%emt 0:05:49]} Rb4
{[%emt 0:06:45]} 27. Rxb4 {[%emt 0:00:36]} cxb4 {[%emt 0:00:05]} 28. Rc1 {
[%emt 0:01:19]} Qd8 {[%emt 0:05:51]} 29. Bd5 {[%emt 0:00:34]} Rb8 {[%emt 0:00:
14]} 30. Nd2 {[%emt 0:00:12]} Bg5 {[%emt 0:02:02]} 31. f4 {[%emt 0:00:01]} Bxf4
{[%emt 0:01:40]} 32. Bxf7+ {[%emt 0:00:05]} Kh8 {[%emt 0:00:47]} 33. Rc2 {
[%emt 0:01:39]} Qf6 {[%emt 0:02:09]} 34. Qxd7 {[%emt 0:00:34]} Be3+ {[%emt 0:
00:06]} 35. Kh1 {[%emt 0:00:07]} Qa1+ {[%emt 0:00:06]} 0-1

[Event "Lithuanian Chess League 2021"]
[Site "Various cities"]
[Date "2021.05.08"]
[Round "2.4"]
[White "Mickevicius, Juras"]
[Black "Klabis, Rokas"]
[Result "0-1"]
[WhiteElo "2281"]
[BlackElo "2329"]
[PlyCount "148"]
[TimeControl "90/40+30:0"]
[WhiteClock "0:08:18"]
[BlackClock "0:00:50"]

1. d4 {[%emt 0:00:06]} Nf6 {[%emt 0:00:18]} 2. c4 {[%emt 0:00:06]} e6 {[%emt 0:
00:13]} 3. g3 {[%emt 0:00:07]} d5 {[%emt 0:01:31]} 4. Nf3 {[%emt 0:00:04]} Bb4+
{[%emt 0:01:23]} 5. Bd2 {[%emt 0:00:25]} Be7 {[%emt 0:00:08]} 6. Bg2 {[%emt 0:
00:07]} O-O {[%emt 0:00:08]} 7. O-O {[%emt 0:00:06]} c6 {[%emt 0:00:03]} 8. Qc2
{[%emt 0:00:03]} b6 {[%emt 0:01:05]} 9. Bf4 {[%emt 0:02:25]} Nbd7 {[%emt 0:03:
20]} 10. Rd1 {[%emt 0:00:16]} Nh5 {[%emt 0:03:17]} 11. Bc1 {[%emt 0:16:18]}
Nhf6 {[%emt 0:00:06]} 12. b3 {[%emt 0:09:32]} Ba6 {[%emt 0:09:06]} 13. Nbd2 {
[%emt 0:08:23]} Rc8 {[%emt 0:06:38]} 14. e4 {[%emt 0:00:53]} Nxe4 {[%emt 0:11:
50]} 15. Nxe4 {[%emt 0:00:10]} dxe4 {[%emt 0:00:04]} 16. Qxe4 {[%emt 0:00:47]}
b5 {[%emt 0:00:06]} 17. Qc2 {[%emt 0:05:41]} bxc4 {[%emt 0:05:59]} 18. bxc4 {
[%emt 0:00:06]} Qa5 {[%emt 0:00:10]} 19. Bd2 {[%emt 0:07:24]} Bb4 {[%emt 0:01:
31]} 20. c5 {[%emt 0:08:47]} Bxd2 {[%emt 0:02:15]} 21. Rxd2 {[%emt 0:07:06]}
Rfd8 {[%emt 0:04:32]} 22. Rdd1 {[%emt 0:02:34]} Nf6 {[%emt 0:03:16]} 23. Ne5 {
[%emt 0:03:12]} Nd5 {[%emt 0:02:07]} 24. Bxd5 {[%emt 0:03:07]} Rxd5 {[%emt 0:
00:26]} 25. h4 {[%emt 0:01:16]} Bb5 {[%emt 0:16:48]} 26. a4 {[%emt 0:01:05]}
Ba6 {[%emt 0:00:04]} 27. Rab1 {[%emt 0:04:21]} Qc7 {[%emt 0:08:44]} 28. Nf3 {
[%emt 0:05:57]} h6 {[%emt 0:02:02]} 29. Rb4 {[%emt 0:02:28]} Rcd8 {[%emt 0:03:
19]} 30. Re1 {[%emt 0:01:27]} Rb8 {[%emt 0:04:49]} 31. Reb1 {[%emt 0:01:55]}
Rxb4 {[%emt 0:00:43]} 32. Rxb4 {[%emt 0:00:02]} Rd8 {[%emt 0:00:10]} 33. Ne5 {
[%emt 0:00:23]} f6 {[%emt 0:04:44]} 34. Nf3 {[%emt 0:01:47]} Qd7 {[%emt 0:03:
19]} 35. Nd2 {[%emt 0:08:04]} e5 {[%emt 0:01:58]} 36. Nb3 {[%emt 0:01:17]} Qh3
{[%emt 0:01:04]} 37. Qd1 {[%emt 0:00:36]} Qf5 {[%emt 0:00:35]} 38. Qe1 {[%emt
0:00:21]} Qc2 {[%emt 0:00:58]} 39. Kh2 {[%emt 0:00:39]} Bc4 {[%emt 0:00:36]}
40. Nd2 {[%emt 0:00:36]} Bd5 {[%emt 0:00:30]} 41. dxe5 {[%emt 0:01:43]} fxe5 {
[%emt 0:02:42]} 42. Qe3 {[%emt 0:04:52]} Rf8 {[%emt 0:03:02]} 43. a5 {[%emt 0:
01:25]} Qd1 {[%emt 0:06:06]} 44. Rb1 {[%emt 0:00:12]} Qa4 {[%emt 0:01:07]} 45.
Rc1 {[%emt 0:01:03]} Qxa5 {[%emt 0:00:55]} 46. Kg1 {[%emt 0:00:36]} Qb4 {[%emt
0:01:19]} 47. Nb1 {[%emt 0:01:23]} Qb2 {[%emt 0:04:54]} 48. Nc3 {[%emt 0:00:09]
} Bf3 {[%emt 0:06:58]} 49. Rb1 {[%emt 0:00:31]} Qc2 {[%emt 0:00:14]} 50. Qxe5 {
[%emt 0:00:39]} a5 {[%emt 0:01:22]} 51. Ra1 {[%emt 0:02:09]} a4 {[%emt 0:03:11]
} 52. Nxa4 {[%emt 0:02:22]} Bd5 {[%emt 0:00:24]} 53. Qd4 {[%emt 0:00:14]} Rf3 {
[%emt 0:01:23]} 54. Nb6 {[%emt 0:00:51]} Rxg3+ {[%emt 0:00:37]} 55. Kf1 {[%emt
0:00:00]} Rd3 {[%emt 0:00:31]} 56. Qg4 {[%emt 0:00:45]} Rf3 {[%emt 0:02:44]}
57. Qd4 {[%emt 0:01:05]} Be6 {[%emt 0:00:20]} 58. Kg2 {[%emt 0:03:06]} Rf7 {
[%emt 0:00:54]} 59. Ra3 {[%emt 0:01:54]} Bf5 {[%emt 0:00:42]} 60. Re3 {[%emt 0:
00:27]} Kh7 {[%emt 0:00:27]} 61. Nc4 {[%emt 0:00:50]} Bg6 {[%emt 0:00:08]} 62.
Nd2 {[%emt 0:00:34]} Bf5 {[%emt 0:00:51]} 63. Nc4 {[%emt 0:01:38]} Bg6 {[%emt
0:00:35]} 64. Nd2 {[%emt 0:00:04]} Rf5 {[%emt 0:00:24]} 65. Rc3 {[%emt 0:03:24]
} Qb2 {[%emt 0:00:34]} 66. Qe3 {[%emt 0:00:22]} Rf6 {[%emt 0:00:33]} 67. Rb3 {
[%emt 0:00:51]} Qa2 {[%emt 0:00:18]} 68. Qd4 {[%emt 0:01:09]} Rf7 {[%emt 0:00:
18]} 69. Rg3 {[%emt 0:00:21]} Qe6 {[%emt 0:00:16]} 70. Re3 {[%emt 0:00:55]} Qf5
{[%emt 0:00:36]} 71. Rf3 {[%emt 0:00:29]} Rd7 {[%emt 0:00:26]} 72. Qc4 {[%emt
0:01:41]} Qd5 {[%emt 0:00:46]} 73. Qg4 {[%emt 0:01:31]} Qxd2 {[%emt 0:00:28]}
74. h5 {[%emt 0:00:02]} Bc2 {[%emt 0:00:31]} 0-1

[Event "Lithuanian Chess League 2021"]
[Site "Various cities"]
[Date "2021.05.08"]
[Round "2.5"]
[White "Setkauskas, Vaidas"]
[Black "Viskelis, Darius"]
[Result "1-0"]
[WhiteElo "2238"]
[BlackElo "2223"]
[PlyCount "43"]
[TimeControl "90/40+30:0"]
[WhiteClock "0:09:17"]
[BlackClock "0:19:54"]

1. e4 {[%emt 0:00:05]} e5 {[%emt 0:00:29]} 2. Nf3 {[%emt 0:00:36]} Nc6 {[%emt
0:00:07]} 3. Bb5 {[%emt 0:02:27]} Nf6 {[%emt 0:01:00]} 4. O-O {[%emt 0:00:33]}
Bc5 {[%emt 0:00:06]} 5. Nxe5 {[%emt 0:06:02]} Nxe5 {[%emt 0:00:15]} 6. d4 {
[%emt 0:00:05]} c6 {[%emt 0:00:40]} 7. dxe5 {[%emt 0:10:04]} Nxe4 {[%emt 0:00:
10]} 8. Bd3 {[%emt 0:00:40]} d5 {[%emt 0:00:35]} 9. exd6 {[%emt 0:00:12]} Nf6 {
[%emt 0:01:06]} 10. Bg5 {[%emt 0:07:05]} Be6 {[%emt 0:10:10]} 11. Nc3 {[%emt 0:
11:25]} Bxd6 {[%emt 0:00:18]} 12. Qf3 {[%emt 0:05:03]} Qc7 {[%emt 0:06:46]} 13.
h3 {[%emt 0:09:28]} Be5 {[%emt 0:28:05]} 14. Rfe1 {[%emt 0:07:40]} h6 {[%emt 0:
02:16]} 15. Bh4 {[%emt 0:06:23]} O-O-O {[%emt 0:10:44]} 16. Rad1 {[%emt 0:19:
28]} g5 {[%emt 0:06:04]} 17. Rxe5 {[%emt 0:02:31]} Nd7 {[%emt 0:09:50]} 18.
Rxe6 {[%emt 0:01:33]} fxe6 {[%emt 0:00:02]} 19. Bg3 {[%emt 0:00:06]} e5 {[%emt
0:00:26]} 20. Bf5 {[%emt 0:00:30]} Kb8 {[%emt 0:01:11]} 21. Rxd7 {[%emt 0:00:
15]} Rxd7 {[%emt 0:00:45]} 22. Bxd7 {[%emt 0:00:01]} 1-0

[Event "Lithuanian Chess League 2021"]
[Site "Various cities"]
[Date "2021.05.08"]
[Round "2.6"]
[White "Bieliauskas, Marius"]
[Black "Stauskas, Lukas"]
[Result "1/2-1/2"]
[WhiteElo "2201"]
[BlackElo "2316"]
[PlyCount "90"]
[TimeControl "90/40+30:0"]
[WhiteClock "0:16:39"]
[BlackClock "0:19:07"]

1. d4 {[%emt 0:00:01]} d5 {[%emt 0:00:16]} 2. c4 {[%emt 0:00:10]} c6 {[%emt 0:
00:14]} 3. cxd5 {[%emt 0:03:23]} cxd5 {[%emt 0:00:08]} 4. Bf4 {[%emt 0:01:03]}
Nc6 {[%emt 0:00:38]} 5. e3 {[%emt 0:01:47]} Nf6 {[%emt 0:01:54]} 6. Nc3 {[%emt
0:00:32]} a6 {[%emt 0:00:16]} 7. Bd3 {[%emt 0:04:06]} Bg4 {[%emt 0:02:52]} 8.
Nge2 {[%emt 0:07:30]} Rc8 {[%emt 0:03:50]} 9. f3 {[%emt 0:07:36]} Bh5 {[%emt 0:
03:31]} 10. O-O {[%emt 0:01:02]} e6 {[%emt 0:00:32]} 11. Rc1 {[%emt 0:00:48]}
Bd6 {[%emt 0:09:58]} 12. Bxd6 {[%emt 0:05:32]} Qxd6 {[%emt 0:00:06]} 13. Na4 {
[%emt 0:03:06]} O-O {[%emt 0:16:47]} 14. Qd2 {[%emt 0:15:08]} e5 {[%emt 0:10:
53]} 15. dxe5 {[%emt 0:02:02]} Nxe5 {[%emt 0:00:18]} 16. Nac3 {[%emt 0:04:44]}
Rfe8 {[%emt 0:11:34]} 17. b3 {[%emt 0:03:09]} Qb6 {[%emt 0:16:36]} 18. Nd4 {
[%emt 0:02:29]} Bg6 {[%emt 0:00:43]} 19. Na4 {[%emt 0:04:34]} Qd6 {[%emt 0:01:
07]} 20. Bf5 {[%emt 0:02:11]} Rcd8 {[%emt 0:02:44]} 21. Nc5 {[%emt 0:04:06]}
Qb6 {[%emt 0:02:02]} 22. Na4 {[%emt 0:01:42]} Qd6 {[%emt 0:00:06]} 23. Rc2 {
[%emt 0:04:16]} Re7 {[%emt 0:01:35]} 24. Rfc1 {[%emt 0:00:44]} Rde8 {[%emt 0:
01:56]} 25. Rc8 {[%emt 0:05:31]} Rxc8 {[%emt 0:02:28]} 26. Rxc8+ {[%emt 0:00:
10]} Re8 {[%emt 0:00:06]} 27. Qc3 {[%emt 0:02:17]} Kf8 {[%emt 0:02:52]} 28. Qc5
{[%emt 0:02:22]} Qxc5 {[%emt 0:03:11]} 29. Nxc5 {[%emt 0:02:04]} Bxf5 {[%emt 0:
01:10]} 30. Rxe8+ {[%emt 0:00:10]} Nxe8 {[%emt 0:00:20]} 31. Nxf5 {[%emt 0:00:
05]} g6 {[%emt 0:00:13]} 32. Nd4 {[%emt 0:00:41]} Nd6 {[%emt 0:00:18]} 33. Kf1
{[%emt 0:01:52]} Ke7 {[%emt 0:00:08]} 34. Ke2 {[%emt 0:00:10]} h5 {[%emt 0:01:
32]} 35. Nd3 {[%emt 0:00:32]} Nxd3 {[%emt 0:00:51]} 36. Kxd3 {[%emt 0:00:09]}
Ne8 {[%emt 0:00:32]} 37. Ne2 {[%emt 0:02:22]} Kd6 {[%emt 0:00:15]} 38. Nd4 {
[%emt 0:04:06]} Nc7 {[%emt 0:00:50]} 39. Kc3 {[%emt 0:01:07]} Kc5 {[%emt 0:00:
56]} 40. b4+ {[%emt 0:00:43]} Kd6 {[%emt 0:00:19]} 41. a4 {[%emt 0:00:26]} b6 {
[%emt 0:08:50]} 42. Nb3 {[%emt 0:02:34]} Ne6 {[%emt 0:01:11]} 43. h4 {[%emt 0:
02:20]} f5 {[%emt 0:03:10]} 44. Nd4 {[%emt 0:01:47]} Nd8 {[%emt 0:03:53]} 45.
Kd3 {[%emt 0:13:22]} Ke5 {[%emt 0:00:16]} 1/2-1/2

[Event "Lithuanian Chess League 2021"]
[Site "Various cities"]
[Date "2021.05.08"]
[Round "2.7"]
[White "Vardanyan, Aras"]
[Black "Tvarijonas, Tomas"]
[Result "1-0"]
[WhiteElo "2197"]
[BlackElo "2221"]
[PlyCount "45"]
[TimeControl "90/40+30:0"]
[WhiteClock "1:02:46"]
[BlackClock "0:09:36"]

1. e4 {[%emt 0:00:02]} c5 {[%emt 0:00:09]} 2. Nc3 {[%emt 0:00:06]} Nc6 {[%emt
0:00:06]} 3. Bb5 {[%emt 0:00:05]} Nd4 {[%emt 0:00:56]} 4. Nf3 {[%emt 0:00:05]}
Nxb5 {[%emt 0:01:17]} 5. Nxb5 {[%emt 0:00:09]} d6 {[%emt 0:00:47]} 6. d4 {
[%emt 0:00:25]} a6 {[%emt 0:03:18]} 7. Nc3 {[%emt 0:02:51]} cxd4 {[%emt 0:00:
38]} 8. Qxd4 {[%emt 0:00:06]} Bg4 {[%emt 0:08:29]} 9. Bg5 {[%emt 0:03:43]} Qa5
{[%emt 0:09:06]} 10. b4 {[%emt 0:07:53]} Qc7 {[%emt 0:05:22]} 11. Nd5 {[%emt 0:
02:02]} Qc6 {[%emt 0:01:11]} 12. c4 {[%emt 0:03:52]} Rc8 {[%emt 0:09:01]} 13.
O-O {[%emt 0:02:08]} f6 {[%emt 0:10:54]} 14. Be3 {[%emt 0:04:18]} Qxc4 {[%emt
0:04:59]} 15. Qa7 {[%emt 0:00:30]} Qxe4 {[%emt 0:05:33]} 16. Qxb7 {[%emt 0:00:
27]} Kf7 {[%emt 0:01:00]} 17. Nd2 {[%emt 0:00:14]} Qc2 {[%emt 0:08:02]} 18. a4
{[%emt 0:02:48]} Be6 {[%emt 0:05:12]} 19. b5 {[%emt 0:01:45]} a5 {[%emt 0:05:
02]} 20. b6 {[%emt 0:00:58]} g5 {[%emt 0:03:49]} 21. Nc7 {[%emt 0:00:52]} Bd7 {
[%emt 0:06:43]} 22. Rfc1 {[%emt 0:01:33]} Qf5 {[%emt 0:00:19]} 23. Qa7 {[%emt
0:02:21]} 1-0

[Event "Lithuanian Chess League 2021"]
[Site "Various cities"]
[Date "2021.05.08"]
[Round "2.8"]
[White "Steponavicius, Stasys"]
[Black "Salna, Aleksandras"]
[Result "1/2-1/2"]
[WhiteElo "2193"]
[BlackElo "2125"]
[PlyCount "117"]
[TimeControl "90/40+30:0"]
[WhiteClock "0:12:13"]
[BlackClock "0:07:07"]

1. d4 {[%emt 0:00:02]} d6 {[%emt 0:00:26]} 2. c4 {[%emt 0:00:22]} e5 {[%emt 0:
00:07]} 3. Nf3 {[%emt 0:00:18]} e4 {[%emt 0:01:26]} 4. Nfd2 {[%emt 0:00:25]} f5
{[%emt 0:00:09]} 5. e3 {[%emt 0:00:08]} Nf6 {[%emt 0:00:59]} 6. Nc3 {[%emt 0:
00:21]} g6 {[%emt 0:00:17]} 7. f3 {[%emt 0:00:20]} Bh6 {[%emt 0:00:05]} 8. f4 {
[%emt 0:08:54]} O-O {[%emt 0:00:57]} 9. Be2 {[%emt 0:00:41]} Bg7 {[%emt 0:01:
29]} 10. Nb3 {[%emt 0:06:43]} a5 {[%emt 0:02:53]} 11. d5 {[%emt 0:06:39]} c6 {
[%emt 0:04:28]} 12. Nd4 {[%emt 0:06:38]} Bd7 {[%emt 0:01:23]} 13. Qb3 {[%emt 0:
04:47]} Na6 {[%emt 0:08:23]} 14. Bd2 {[%emt 0:01:24]} Nc5 {[%emt 0:01:27]} 15.
Qc2 {[%emt 0:02:40]} Qe7 {[%emt 0:17:58]} 16. O-O {[%emt 0:06:09]} Rfc8 {[%emt
0:00:49]} 17. dxc6 {[%emt 0:03:01]} bxc6 {[%emt 0:00:54]} 18. Rfd1 {[%emt 0:00:
43]} Ne8 {[%emt 0:02:28]} 19. Be1 {[%emt 0:02:02]} Nc7 {[%emt 0:04:06]} 20.
Rab1 {[%emt 0:03:17]} N7e6 {[%emt 0:01:49]} 21. g3 {[%emt 0:07:55]} Nxd4 {
[%emt 0:01:37]} 22. exd4 {[%emt 0:00:26]} Ne6 {[%emt 0:00:04]} 23. Bf2 {[%emt
0:06:05]} g5 {[%emt 0:02:06]} 24. d5 {[%emt 0:01:40]} e3 {[%emt 0:02:55]} 25.
dxe6 {[%emt 0:07:31]} exf2+ {[%emt 0:00:10]} 26. Kxf2 {[%emt 0:00:12]} Qxe6 {
[%emt 0:01:21]} 27. Qd2 {[%emt 0:03:00]} Re8 {[%emt 0:02:23]} 28. Bh5 {[%emt 0:
03:56]} Qh6 {[%emt 0:22:28]} 29. Bf3 {[%emt 0:03:12]} Qxh2+ {[%emt 0:03:02]}
30. Bg2 {[%emt 0:00:07]} gxf4 {[%emt 0:00:08]} 31. Qxf4 {[%emt 0:00:46]} Bh6 {
[%emt 0:00:10]} 32. Qh4 {[%emt 0:06:22]} Qxh4 {[%emt 0:00:55]} 33. gxh4 {[%emt
0:00:06]} Bf4 {[%emt 0:00:15]} 34. c5 {[%emt 0:01:57]} Be3+ {[%emt 0:01:13]}
35. Kf1 {[%emt 0:00:07]} Bxc5 {[%emt 0:00:04]} 36. Na4 {[%emt 0:00:15]} Re5 {
[%emt 0:04:10]} 37. Nxc5 {[%emt 0:01:05]} Rxc5 {[%emt 0:00:05]} 38. Rxd6 {
[%emt 0:00:10]} Be8 {[%emt 0:00:07]} 39. Re1 {[%emt 0:03:47]} Rc2 {[%emt 0:05:
06]} 40. Re2 {[%emt 0:04:59]} Rxe2 {[%emt 0:02:41]} 41. Kxe2 {[%emt 0:00:07]}
Kg7 {[%emt 0:12:03]} 42. Ke3 {[%emt 0:07:16]} Rb8 {[%emt 0:03:10]} 43. b3 {
[%emt 0:02:01]} Rb4 {[%emt 0:00:44]} 44. h5 {[%emt 0:03:11]} Bxh5 {[%emt 0:02:
01]} 45. Bxc6 {[%emt 0:01:10]} Rh4 {[%emt 0:04:23]} 46. Rd4 {[%emt 0:04:46]}
Rxd4 {[%emt 0:10:12]} 47. Kxd4 {[%emt 0:00:06]} Bd1 {[%emt 0:01:17]} 48. Ke5 {
[%emt 0:00:54]} Bc2 {[%emt 0:01:08]} 49. Kf4 {[%emt 0:05:16]} Kf6 {[%emt 0:00:
25]} 50. Bd5 {[%emt 0:00:28]} h5 {[%emt 0:01:14]} 51. a3 {[%emt 0:01:02]} h4 {
[%emt 0:00:37]} 52. b4 {[%emt 0:00:17]} axb4 {[%emt 0:00:06]} 53. axb4 {[%emt
0:00:04]} Ke7 {[%emt 0:00:09]} 54. Bg2 {[%emt 0:00:31]} Kd6 {[%emt 0:00:38]}
55. Bh3 {[%emt 0:01:13]} Kd5 {[%emt 0:00:17]} 56. Kg5 {[%emt 0:00:18]} Kc4 {
[%emt 0:00:04]} 57. Kxh4 {[%emt 0:00:19]} Kxb4 {[%emt 0:00:04]} 58. Kg5 {[%emt
0:00:09]} f4 {[%emt 0:00:06]} 59. Kxf4 {[%emt 0:00:06]} 1/2-1/2